lending/lending_fUSD_20250425
["ID","MTS","AMOUNT","RATE_DAILY","PERIOD"]
[358951135,1745583085090,-500.0,0.00036164,2]
[358951136,1745583085100,-1077.87,0.00036164,2]
[358951137,1745583085111,-500.0,0.00036164,2]
[358951138,1745583085121,-500.0,0.00036164,2]
[358951139,1745583085131,-1008.41,0.00036164,2]
[358951140,1745583085142,-895.82,0.00036164,2]
[358951141,1745583085153,-1338.54,0.00036164,2]
[358951142,1745583085163,-1139.46,0.00036164,2]
[358951143,1745583085172,-903.82,0.00036164,2]
[358951144,1745583085183,-560.99,0.00036164,2]
[358951145,1745583085195,-151.0,0.00036164,7]
[358951146,1745583085206,-823.66,0.00036164,2]
[358951147,1745583085216,-781.45,0.00036164,2]
[358951148,1745583085226,-570.19557325,0.00036164,2]
[358951149,1745583085239,-500.0,0.00036164,2]
[358951150,1745583085249,-500.0,0.00036164,2]
[358951151,1745583085259,-657.34,0.00036164,2]
[358951152,1745583085269,-500.0,0.00036164,2]
[358951153,1745583085279,-500.0,0.00036164,2]
[358951154,1745583085289,-500.0,0.00036164,2]
[358951155,1745583085299,-644.62,0.00036164,2]
[358951156,1745583085312,-505.96,0.00036164,2]
[358951157,1745583085323,-595.07,0.00036164,2]
[358951158,1745583085335,-500.0,0.00036164,2]
[358951159,1745583085346,-500.0,0.00036164,2]
[358951160,1745583085358,-500.0,0.00036164,2]
[358951161,1745583085372,-500.0,0.00036164,2]
[358951162,1745583085383,-501.78,0.00036164,2]
[358951163,1745583085394,-500.0,0.00036164,2]
[358951164,1745583085408,-500.0,0.00036164,2]
[358951165,1745583085419,-228.49430612,0.00036164,2]
[358951166,1745583085429,-641.42,0.00036164,2]
[358951167,1745583085439,-500.0,0.00036164,2]
[358951168,1745583085449,-500.0,0.00036164,2]
[358951169,1745583085459,-500.0,0.00036164,2]
[358951170,1745583085470,-500.0,0.00036164,2]
[358951171,1745583085480,-500.0,0.00036164,2]
[358951172,1745583085492,-852.47,0.00036164,2]
[358951173,1745583085502,-500.0,0.00036164,2]
[358951174,1745583085512,-500.0,0.00036164,2]
[358951175,1745583085523,-500.0,0.00036164,2]
[358951176,1745583085533,-500.0,0.00036164,2]
[358951177,1745583085545,-821.73,0.00036164,2]
[358951178,1745583085556,-875.42,0.00036164,2]
[358951179,1745583085566,-500.0,0.00036164,2]
[358951180,1745583085576,-500.0,0.00036164,2]
[358951181,1745583085587,-1036.33,0.00036164,2]
[358951182,1745583085597,-513.44,0.00036164,2]
[358951183,1745583085607,-500.0,0.00036164,2]
[358951184,1745583085618,-841.68,0.00036164,2]
[358951185,1745583085629,-500.0,0.00036164,2]
[358951186,1745583085639,-500.0,0.00036164,2]
[358951187,1745583085649,-612.26,0.00036164,2]
[358951188,1745583085659,-500.0,0.00036164,2]
[358951189,1745583085670,-500.0,0.00036164,2]
[358951190,1745583085680,-500.84,0.00036164,2]
[358951191,1745583085690,-500.0,0.00036164,2]
[358951192,1745583085700,-585.26572592,0.00036164,2]
[358951193,1745583085710,-520.1,0.00036164,2]
[358951194,1745583085720,-500.0,0.00036164,2]
[358951195,1745583085731,-500.0,0.00036164,2]
[358951196,1745583085741,-500.0,0.00036164,2]
[358951197,1745583085751,-500.0,0.00036164,2]
[358951198,1745583085761,-500.0,0.00036164,2]
[358951199,1745583085771,-975.25,0.00036164,2]
[358951200,1745583085781,-500.0,0.00036164,2]
[358951201,1745583085791,-2765.1,0.00036164,2]
[358951202,1745583085802,-502.18,0.00036164,2]
[358951203,1745583085811,-500.0,0.00036164,2]
[358951204,1745583085821,-500.0,0.00036164,2]
[358951205,1745583085832,-1243.64,0.00036164,2]
[358951206,1745583085842,-500.0,0.00036164,2]
[358951207,1745583085853,-1752.11,0.00036164,2]
[358951208,1745583085863,-500.0,0.00036164,2]
[358951209,1745583085874,-500.0,0.00036164,2]
[358951210,1745583085885,-500.0,0.00036164,2]
[358951211,1745583085895,-500.0,0.00036164,2]
[358951212,1745583085905,-500.0,0.00036164,2]
[358951213,1745583085916,-500.0,0.00036164,2]
[358951214,1745583085926,-500.0,0.00036164,2]
[358951215,1745583085937,-500.0,0.00036164,2]
[358951216,1745583085947,-522.25502873,0.00036164,2]
[358951217,1745583085957,-500.0,0.00036164,2]
[358951218,1745583085966,-1549.0,0.00036164,2]
[358951219,1745583085976,-500.0,0.00036164,2]
[358951220,1745583085986,-551.38411433,0.00036164,2]
[358951221,1745583085996,-500.0,0.00036164,2]
[358951222,1745583086006,-500.0,0.00036164,2]
[358951223,1745583086015,-500.0,0.00036164,2]
[358951224,1745583086025,-500.0,0.00036164,2]
[358951225,1745583086035,-500.0,0.00036164,2]
[358951226,1745583086045,-500.0,0.00036164,2]
[358951227,1745583086055,-653.33,0.00036164,2]
[358951228,1745583086065,-500.0,0.00036164,2]
[358951229,1745583086075,-500.0,0.00036164,2]
[358951230,1745583086085,-300.0,0.00036164,30]
[358951231,1745583086095,-500.0,0.00036164,2]
[358951232,1745583086105,-500.0,0.00036164,2]
[358951233,1745583086115,-500.0,0.00036164,2]
[358951234,1745583086125,-1490.15,0.00036164,2]
[358951235,1745583086135,-500.0,0.00036164,2]
[358951236,1745583086145,-500.0,0.00036164,2]
[358951237,1745583086154,-500.0,0.00036164,2]
[358951238,1745583086165,-1281.04,0.00036164,2]
[358951239,1745583086175,-500.0,0.00036164,2]
[358951240,1745583086184,-664.11,0.00036164,2]
[358951241,1745583086194,-500.0,0.00036164,2]
[358951242,1745583086204,-557.66,0.00036164,2]
[358951243,1745583086214,-500.0,0.00036164,2]
[358951244,1745583086224,-544.36,0.00036164,2]
[358951245,1745583086234,-803.76,0.00036164,2]
[358951246,1745583086244,-1691.971341,0.00036164,7]
[358951247,1745583086253,-500.0,0.00036164,2]
[358951248,1745583086263,-500.0,0.00036164,2]
[358951249,1745583086273,-661.96,0.00036164,2]
[358951250,1745583086284,-672.15,0.00036164,2]
[358951251,1745583086293,-533.3,0.00036164,2]
[358951252,1745583086305,-731.33,0.00036164,2]
[358951253,1745583086315,-500.0,0.00036164,2]
[358951254,1745583086324,-593.04,0.00036164,2]
[358951255,1745583086334,-500.0,0.00036164,2]
[358951256,1745583086344,-500.0,0.00036164,2]
[358951257,1745583086354,-500.0,0.00036164,2]
[358951258,1745583086364,-500.0,0.00036164,2]
[358951259,1745583086374,-586.90492225,0.00036164,2]
[358951260,1745583086384,-500.0,0.00036164,2]
[358951261,1745583086394,-500.0,0.00036164,2]
[358951262,1745583086405,-2909.22,0.00036164,2]
[358951263,1745583086418,-500.0,0.00036164,2]
[358951264,1745583086649,-500.0,0.00036164,2]
[358951265,1745583086660,-557.106122,0.00036164,2]
[358951266,1745583086670,-1883.8,0.00036164,2]
[358951267,1745583086680,-500.0,0.00036164,2]
[358951268,1745583086690,-500.0,0.00036164,2]
[358951269,1745583086699,-500.0,0.00036164,2]
[358951270,1745583086709,-715.33,0.00036164,2]
[358951271,1745583086718,-500.0,0.00036164,2]
[358951272,1745583086728,-198.55151447,0.00036164,2]
[358951273,1745583086738,-156.34320295,0.00036164,2]
[358951274,1745583086747,-500.0,0.00036164,2]
[358951275,1745583086757,-500.0,0.00036164,2]
[358951276,1745583086767,-500.0,0.00036164,2]
[358951277,1745583086776,-1130.46,0.00036164,2]
[358951278,1745583086786,-500.0,0.00036164,2]
[358951279,1745583086795,-161.35701243,0.00036164,2]
[358951280,1745583086804,-500.0,0.00036164,2]
[358951281,1745583086814,-686.42,0.00036164,2]
[358951282,1745583086823,-565.37413062,0.00036164,2]
[358951283,1745583086833,-500.0,0.00036164,2]
[358951284,1745583086842,-500.0,0.00036164,2]
[358951285,1745583086852,-500.0,0.00036164,2]
[358951286,1745583086861,-500.0,0.00036164,2]
[358951287,1745583086871,-500.0,0.00036164,2]
[358951288,1745583086880,-1580.56,0.00036164,2]
[358951289,1745583086890,-500.0,0.00036164,2]
[358951290,1745583086899,-500.0,0.00036164,2]
[358951291,1745583086908,-500.0,0.00036164,2]
[358951292,1745583086917,-1178.77,0.00036164,2]
[358951293,1745583086927,-500.0,0.00036164,2]
[358951294,1745583086936,-187.68261453,0.00036164,2]
[358951295,1745583086945,-987.3,0.00036164,2]
[358951296,1745583086955,-500.0,0.00036164,2]
[358951297,1745583086964,-500.0,0.00036164,2]
[358951298,1745583086974,-560.86,0.00036164,2]
[358951299,1745583086983,-500.0,0.00036164,2]
[358951300,1745583086992,-500.0,0.00036164,2]
[358951301,1745583087002,-500.0,0.00036164,2]
[358951302,1745583087011,-500.0,0.00036164,2]
[358951303,1745583087020,-500.0,0.00036164,2]
[358951304,1745583087029,-423.8387133,0.00036164,2]
[358951305,1745583087039,-500.0,0.00036164,2]
[358951306,1745583087049,-500.0,0.00036164,2]
[358951307,1745583087059,-956.78,0.00036164,2]
[358951308,1745583087068,-500.0,0.00036164,2]
[358951309,1745583087077,-568.10583732,0.00036164,2]
[358951310,1745583087087,-636.67,0.00036164,2]
[358951311,1745583087106,-520.7597961,0.00036164,2]
[358951312,1745583087118,-500.0,0.00036164,2]
[358951313,1745583087128,-966.15,0.00036164,2]
[358951314,1745583087138,-500.0,0.00036164,2]
[358951315,1745583087148,-500.0,0.00036164,2]
[358951316,1745583087158,-500.0,0.00036164,2]
[358951317,1745583087168,-500.0,0.00036164,2]
[358951318,1745583087178,-1012.74,0.00036164,2]
[358951319,1745583087188,-818.36,0.00036164,2]
[358951320,1745583087199,-500.0,0.00036164,2]
[358951321,1745583087211,-500.0,0.00036164,2]
[358951322,1745583087223,-500.0,0.00036164,2]
[358951323,1745583087233,-1055.72,0.00036164,2]
[358951324,1745583087243,-971.58,0.00036164,2]
[358951325,1745583087254,-1159.23,0.00036164,2]
[358951326,1745583087265,-1090.24,0.00036164,2]
[358951327,1745583087276,-500.0,0.00036164,2]
[358951328,1745583087286,-1035.57,0.00036164,2]
[358951329,1745583087296,-500.0,0.00036164,2]
[358951330,1745583087307,-500.0,0.00036164,2]
[358951331,1745583087316,-500.0,0.00036164,2]
[358951332,1745583087327,-597.18,0.00036164,2]
[358951333,1745583087336,-1160.16,0.00036164,2]
[358951334,1745583087346,-1806.28,0.00036164,2]
[358951335,1745583087356,-500.0,0.00036164,2]
[358951336,1745583087366,-500.0,0.00036164,2]
[358951337,1745583087376,-956.25,0.00036164,2]
[358951338,1745583087386,-1090.74,0.00036164,2]
[358951339,1745583087396,-500.0,0.00036164,2]
[358951340,1745583087409,-534.98,0.00036164,2]
[358951341,1745583087420,-300.0,0.00036164,2]
[358951342,1745583087432,-727.52,0.00036164,2]
[358951343,1745583087443,-500.0,0.00036164,2]
[358951344,1745583087456,-500.0,0.00036164,2]
[358951345,1745583087466,-880.44,0.00036164,2]
[358951346,1745583087476,-796.66,0.00036164,2]
[358951347,1745583087488,-554.44,0.00036164,2]
[358951348,1745583087499,-1021.41,0.00036164,2]
[358951349,1745583087510,-548.87511888,0.00036164,2]
[358951350,1745583087521,-500.0,0.00036164,2]
[358951351,1745583087531,-500.0,0.00036164,2]
[358951352,1745583087541,-500.0,0.00036164,2]
[358951353,1745583087551,-500.0,0.00036164,2]
[358951354,1745583087561,-868.82,0.00036164,2]
[358951355,1745583087571,-500.0,0.00036164,2]
[358951356,1745583087581,-500.0,0.00036164,2]
[358951357,1745583087591,-1039.89,0.00036164,2]
[358951358,1745583087602,-500.0,0.00036164,2]
[358951359,1745583087612,-1127.53,0.00036164,2]
[358951360,1745583087622,-692.33,0.00036164,2]
[358951361,1745583087633,-500.0,0.00036164,2]
[358951362,1745583087643,-573.95,0.00036164,2]
[358951363,1745583087654,-500.0,0.00036164,2]
[358951364,1745583087665,-500.0,0.00036164,2]
[358951365,1745583087677,-500.0,0.00036164,2]
[358951366,1745583087688,-889.2,0.00036164,2]
[358951367,1745583087698,-1131.78,0.00036164,2]
[358951368,1745583087708,-604.33,0.00036164,2]
[358951369,1745583087718,-843.53,0.00036164,2]
[358951370,1745583087728,-500.0,0.00036164,2]
[358951371,1745583087739,-500.0,0.00036164,2]
[358951372,1745583087749,-500.0,0.00036164,2]
[358951373,1745583087759,-500.0,0.00036164,2]
[358951374,1745583087769,-500.0,0.00036164,2]
[358951375,1745583087779,-500.0,0.00036164,2]
[358951376,1745583087789,-1072.46,0.00036164,2]
[358951377,1745583087798,-500.0,0.00036164,2]
[358951378,1745583087810,-500.0,0.00036164,2]
[358951379,1745583087820,-500.0,0.00036164,2]
[358951380,1745583087830,-500.0,0.00036164,2]
[358951381,1745583087840,-606.77,0.00036164,2]
[358951382,1745583087850,-500.0,0.00036164,2]
[358951383,1745583087859,-500.0,0.00036164,2]
[358951384,1745583087870,-1108.5,0.00036164,2]
[358951385,1745583087880,-500.0,0.00036164,2]
[358951386,1745583087889,-672.72,0.00036164,2]
[358951387,1745583087899,-1494.34,0.00036164,2]
[358951388,1745583087909,-500.0,0.00036164,2]
[358951389,1745583087919,-500.0,0.00036164,2]
[358951390,1745583087929,-500.0,0.00036164,2]
[358951391,1745583087939,-500.0,0.00036164,2]
[358951392,1745583087948,-506.96209056,0.00036164,2]
[358951393,1745583087958,-500.0,0.00036164,2]
[358951394,1745583087968,-500.0,0.00036164,2]
[358951395,1745583087978,-825.41,0.00036164,2]
[358951396,1745583087987,-500.0,0.00036164,2]
[358951397,1745583087998,-549.05,0.00036164,2]
[358951398,1745583088008,-500.0,0.00036164,2]
[358951399,1745583088018,-500.0,0.00036164,2]
[358951400,1745583088028,-633.21385446,0.00036164,2]
[358951401,1745583088038,-500.0,0.00036164,2]
[358951402,1745583088048,-500.0,0.00036164,2]
[358951403,1745583088061,-1026.97,0.00036164,2]
[358951404,1745583088071,-500.0,0.00036164,2]
[358951405,1745583088081,-491.37452138,0.00036164,2]
[358951406,1745583088091,-500.0,0.00036164,2]
[358951407,1745583088102,-722.24,0.00036164,2]
[358951408,1745583088113,-500.0,0.00036164,2]
[358951409,1745583088122,-1168.97,0.00036164,2]
[358951410,1745583088132,-718.66,0.00036164,2]
[358951411,1745583088144,-4888.31,0.00036164,2]
[358951412,1745583088155,-500.0,0.00036164,2]
[358951413,1745583088164,-500.0,0.00036164,2]
[358951414,1745583088174,-151.0,0.00036164,7]
[358951415,1745583088184,-526.85338678,0.00036164,2]
[358951416,1745583088194,-500.0,0.00036164,2]
[358951417,1745583088204,-792.74,0.00036164,2]
[358951418,1745583088213,-500.0,0.00036164,2]
[358951419,1745583088223,-964.75,0.00036164,2]
[358951420,1745583088233,-1454.9,0.00036164,2]
[358951421,1745583088243,-954.8,0.00036164,2]
[358951422,1745583088253,-500.0,0.00036164,2]
[358951423,1745583088263,-500.0,0.00036164,2]
[358951424,1745583088272,-500.0,0.00036164,2]
[358951425,1745583088283,-500.0,0.00036164,2]
[358951426,1745583088293,-500.0,0.00036164,2]
[358951427,1745583088303,-500.0,0.00036164,2]
[358951428,1745583088314,-500.0,0.00036164,2]
[358951429,1745583088324,-1681.84,0.00036164,2]
[358951430,1745583088334,-971.1,0.00036164,2]
[358951431,1745583088344,-204.34185198,0.00036164,2]
[358951432,1745583088354,-567.72,0.00036164,2]
[358951433,1745583088364,-500.0,0.00036164,2]
[358951434,1745583088374,-500.0,0.00036164,2]
[358951435,1745583088384,-1185.38,0.00036164,2]
[358951436,1745583088394,-506.03,0.00036164,2]
[358951437,1745583088405,-500.0,0.00036164,2]
[358951438,1745583088418,-908.28,0.00036164,2]
[358951439,1745583088428,-500.0,0.00036164,2]
[358951440,1745583088437,-500.0,0.00036164,2]
[358951441,1745583088449,-2009.27,0.00036164,2]
[358951442,1745583088460,-500.0,0.00036164,2]
[358951443,1745583088469,-500.0,0.00036164,2]
[358951444,1745583088478,-500.0,0.00036164,2]
[358951445,1745583088490,-680.11,0.00036164,2]
[358951446,1745583088501,-796.84,0.00036164,2]
[358951447,1745583088511,-500.0,0.00036164,2]
[358951448,1745583088521,-511.9,0.00036164,2]
[358951449,1745583088531,-461.63209462,0.00036164,2]
[358951450,1745583088542,-608.18,0.00036164,2]
[358951451,1745583088555,-518.80920241,0.00036164,2]
[358951452,1745583088565,-500.0,0.00036164,2]
[358951453,1745583088575,-500.0,0.00036164,2]
[358951454,1745583088586,-500.0,0.00036164,2]
[358951455,1745583088595,-500.0,0.00036164,2]
[358951456,1745583088606,-684.54,0.00036164,2]
[358951457,1745583088616,-1211.3,0.00036164,2]
[358951458,1745583088626,-562.49340467,0.00036164,2]
[358951459,1745583088637,-764.13,0.00036164,2]
[358951460,1745583088648,-500.0,0.00036164,2]
[358951461,1745583088658,-500.0,0.00036164,2]
[358951462,1745583088670,-500.0,0.00036164,2]
[358951463,1745583088680,-894.51,0.00036164,2]
[358951464,1745583088689,-782.79,0.00036164,2]
[358951465,1745583088700,-500.0,0.00036164,2]
[358951466,1745583088709,-500.0,0.00036164,2]
[358951467,1745583088719,-500.0,0.00036164,2]
[358951468,1745583088729,-500.0,0.00036164,2]
[358951469,1745583088739,-500.0,0.00036164,2]
[358951470,1745583088749,-586.9990047,0.00036164,2]
[358951471,1745583088759,-500.0,0.00036164,2]
[358951472,1745583088769,-500.0,0.00036164,2]
[358951473,1745583088779,-500.0,0.00036164,2]
[358951474,1745583088789,-723.84,0.00036164,2]
[358951475,1745583088799,-500.0,0.00036164,2]
[358951476,1745583088812,-677.05,0.00036164,2]
[358951477,1745583088822,-500.0,0.00036164,2]
[358951478,1745583088832,-500.0,0.00036164,2]
[358951479,1745583088841,-500.0,0.00036164,2]
[358951480,1745583088851,-894.53,0.00036164,2]
[358951481,1745583088860,-543.7298986,0.00036164,2]
[358951482,1745583088870,-500.0,0.00036164,2]
[358951483,1745583088880,-500.0,0.00036164,2]
[358951484,1745583088889,-6461.02,0.00036164,2]
[358951485,1745583088899,-500.0,0.00036164,2]
[358951486,1745583088909,-818.01,0.00036164,2]
[358951487,1745583088918,-500.0,0.00036164,2]
[358951488,1745583088929,-896.22,0.00036164,2]
[358951489,1745583088938,-500.0,0.00036164,2]
[358951490,1745583088948,-500.0,0.00036164,2]
[358951491,1745583088957,-1031.46,0.00036164,2]
[358951492,1745583088967,-524.69799268,0.00036164,2]
[358951493,1745583088977,-988.18,0.00036164,2]
[358951494,1745583088987,-500.0,0.00036164,2]
[358951495,1745583088997,-705.94,0.00036164,2]
[358951496,1745583089006,-1118.34,0.00036164,2]
[358951497,1745583089016,-500.0,0.00036164,2]
[358951498,1745583089026,-500.0,0.00036164,2]
[358951499,1745583089035,-905.82,0.00036164,2]
[358951500,1745583089045,-1000.0,0.00036164,2]
[358951501,1745583089056,-500.0,0.00036164,2]
[358951502,1745583089065,-500.0,0.00036164,2]
[358951503,1745583089075,-500.0,0.00036164,2]
[358951504,1745583089084,-700.32,0.00036164,2]
[358951505,1745583089093,-1000.0,0.00036164,2]
[358951506,1745583089103,-544.76613967,0.00036164,2]
[358951507,1745583089112,-500.0,0.00036164,2]
[358951508,1745583089122,-500.0,0.00036164,2]
[358951509,1745583089132,-1178.97,0.00036164,2]
[358951510,1745583089141,-500.0,0.00036164,2]
[358951511,1745583089151,-500.0,0.00036164,2]
[358951512,1745583089161,-500.0,0.00036164,2]
[358951513,1745583089170,-500.0,0.00036164,2]
[358951514,1745583089180,-566.86,0.00036164,2]
[358951515,1745583089190,-500.0,0.00036164,2]
[358951516,1745583089200,-500.0,0.00036164,2]
[358951517,1745583089210,-234841.91,0.00036164,2]
[358951518,1745583089219,-500.0,0.00036164,2]
[358951519,1745583089229,-690.7,0.00036164,2]
[358951520,1745583089239,-500.0,0.00036164,2]
[358951521,1745583089250,-5542.21,0.00036164,2]
[358951522,1745583089260,-1088.74,0.00036164,2]
[358951523,1745583089269,-500.0,0.00036164,2]
[358951524,1745583089279,-500.0,0.00036164,2]
[358951525,1745583089288,-541.28,0.00036164,2]
[358951526,1745583089298,-500.0,0.00036164,2]
[358951527,1745583089311,-500.0,0.00036164,2]
[358951528,1745583089320,-500.0,0.00036164,2]
[358951529,1745583089330,-500.0,0.00036164,2]
[358951530,1745583089340,-893.29,0.00036164,2]
[358951531,1745583089350,-249.37929844,0.00036164,2]
[358951532,1745583089359,-517.15789767,0.00036164,2]
[358951533,1745583089369,-500.0,0.00036164,2]
[358951534,1745583089378,-584.55058768,0.00036164,2]
[358951535,1745583089388,-924.91,0.00036164,2]
[358951536,1745583089398,-500.0,0.00036164,2]
[358951537,1745583089409,-764.82,0.00036164,2]
[358951538,1745583089419,-500.0,0.00036164,2]
[358951539,1745583089429,-151.0,0.00036164,7]
[358951540,1745583089439,-505.8,0.00036164,2]
[358951541,1745583089450,-726.32,0.00036164,2]
[358951542,1745583089459,-500.0,0.00036164,2]
[358951543,1745583089470,-500.0,0.00036164,2]
[358951544,1745583089480,-500.0,0.00036164,2]
[358951545,1745583089490,-546.69,0.00036164,2]
[358951546,1745583089500,-668.25,0.00036164,2]
[358951547,1745583089511,-500.0,0.00036164,2]
[358951548,1745583089522,-500.0,0.00036164,2]
[358951549,1745583089532,-500.0,0.00036164,2]
[358951550,1745583089542,-881.51,0.00036164,2]
[358951551,1745583089552,-643.450534,0.00036164,7]
[358951552,1745583089562,-500.0,0.00036164,2]
[358951553,1745583089572,-1158.45,0.00036164,2]
[358951554,1745583089582,-500.0,0.00036164,2]
[358951555,1745583089591,-541.09,0.00036164,2]
[358951556,1745583089602,-500.0,0.00036164,2]
[358951557,1745583089611,-609.87,0.00036164,2]
[358951558,1745583089621,-500.0,0.00036164,2]
[358951559,1745583089631,-979.33,0.00036164,2]
[358951560,1745583089640,-643.450528,0.00036164,7]
[358951561,1745583089650,-1091.92,0.00036164,2]
[358951562,1745583089660,-661.52,0.00036164,2]
[358951563,1745583089669,-500.0,0.00036164,2]
[358951564,1745583089679,-500.0,0.00036164,2]
[358951565,1745583089689,-500.0,0.00036164,2]
[358951566,1745583089698,-1529.99,0.00036164,2]
[358951567,1745583089709,-500.0,0.00036164,2]
[358951568,1745583089719,-151.0,0.00036164,7]
[358951569,1745583089729,-1045.52,0.00036164,2]
[358951570,1745583089739,-1169.39,0.00036164,2]
[358951571,1745583089749,-500.0,0.00036164,2]
[358951572,1745583089759,-1137.26,0.00036164,2]
[358951573,1745583089768,-500.0,0.00036164,2]
[358951574,1745583089778,-1244.94,0.00036164,2]
[358951575,1745583089788,-500.0,0.00036164,2]
[358951576,1745583089798,-500.0,0.00036164,2]
[358951577,1745583089809,-500.0,0.00036164,2]
[358951578,1745583089819,-500.0,0.00036164,2]
[358951579,1745583089828,-667.45,0.00036164,2]
[358951580,1745583089838,-953.11,0.00036164,2]
[358951581,1745583089847,-1098.22,0.00036164,2]
[358951582,1745583089857,-1003.84,0.00036164,2]
[358951583,1745583089866,-515.8212016,0.00036164,2]
[358951584,1745583089875,-500.0,0.00036164,2]
[358951585,1745583089885,-500.0,0.00036164,2]
[358951586,1745583089894,-402.03054503,0.00036164,2]
[358951587,1745583089904,-500.0,0.00036164,2]
[358951588,1745583089913,-500.0,0.00036164,2]
[358951589,1745583089922,-500.0,0.00036164,2]
[358951590,1745583089932,-500.0,0.00036164,2]
[358951591,1745583089943,-1190.38,0.00036164,2]
[358951592,1745583089952,-500.0,0.00036164,2]
[358951593,1745583089961,-943.43,0.00036164,2]
[358951594,1745583089971,-574.84998572,0.00036164,2]
[358951595,1745583089980,-500.0,0.00036164,2]
[358951596,1745583089990,-513.95580512,0.00036164,2]
[358951597,1745583090000,-500.0,0.00036164,2]
[358951598,1745583090010,-500.0,0.00036164,2]
[358951599,1745583090019,-500.0,0.00036164,2]
[358951600,1745583090029,-500.0,0.00036164,2]
[358951601,1745583090038,-500.0,0.00036164,2]
[358951602,1745583090047,-500.0,0.00036164,2]
[358951603,1745583090280,-500.0,0.00036164,2]
[358951604,1745583090292,-1103.09,0.00036164,2]
[358951605,1745583090303,-559.33585552,0.00036164,2]
[358951606,1745583090315,-787.17,0.00036164,2]
[358951607,1745583090325,-596.04,0.00036164,2]
[358951608,1745583090335,-376.38511381,0.00036164,2]
[358951609,1745583090345,-500.0,0.00036164,2]
[358951610,1745583090356,-846.92,0.00036164,2]
[358951611,1745583090366,-500.0,0.00036164,2]
[358951612,1745583090376,-500.0,0.00036164,2]
[358951613,1745583090386,-592.92,0.00036164,2]
[358951614,1745583090396,-530.22,0.00036164,2]
[358951615,1745583090407,-1187.16,0.00036164,2]
[358951616,1745583090418,-500.0,0.00036164,2]
[358951617,1745583090428,-500.0,0.00036164,2]
[358951618,1745583090438,-382.871808,0.00036164,7]
[358951619,1745583090448,-948.98,0.00036164,2]
[358951620,1745583090459,-563.04,0.00036164,2]
[358951621,1745583090468,-793.99,0.00036164,2]
[358951622,1745583090478,-559.24645787,0.00036164,2]
[358951623,1745583090490,-382.871812,0.00036164,7]
[358951624,1745583090500,-1102.75,0.00036164,2]
[358951625,1745583090511,-500.0,0.00036164,2]
[358951626,1745583090520,-2961.2,0.00036164,2]
[358951627,1745583090530,-500.0,0.00036164,2]
[358951628,1745583090541,-1241.27,0.00036164,2]
[358951629,1745583090551,-1117.61,0.00036164,2]
[358951630,1745583090563,-500.0,0.00036164,2]
[358951631,1745583090573,-1207.25,0.00036164,2]
[358951632,1745583090584,-151.0,0.00036164,7]
[358951633,1745583090594,-500.0,0.00036164,2]
[358951634,1745583090604,-500.0,0.00036164,2]